fUSD/lending_fUSD_20241119
["ID","MTS","AMOUNT","RATE_DAILY","PERIOD"]
[342586003,1731983451086,-500.0,9.999e-05,2]
[342586004,1731983451096,-500.0,9.999e-05,2]
[342586005,1731983451106,-500.0,9.999e-05,2]
[342586006,1731983451116,-500.0,9.999e-05,2]
[342586007,1731983451126,-500.0,9.999e-05,2]
[342586008,1731983451136,-419.68385209,9.999e-05,2]
[342586009,1731983451149,-500.0,9.999e-05,2]
[342586010,1731983451159,-500.0,9.999e-05,2]
[342586011,1731983451169,-500.0,9.999e-05,2]
[342586012,1731983451183,-500.0,9.999e-05,2]
[342586013,1731983451193,-500.0,9.999e-05,2]
[342586014,1731983451203,-500.0,9.999e-05,2]
[342586015,1731983451213,-311.48,9.999e-05,2]
[342586016,1731983451225,-500.0,9.999e-05,2]
[342586017,1731983451238,-462.52,9.999e-05,2]
[342586018,1731983451249,-500.0,9.999e-05,2]
[342586019,1731983451262,-500.0,9.999e-05,2]
[342586020,1731983451272,-500.0,9.999e-05,2]
[342586021,1731983451282,-197.85,9.999e-05,2]
[342586022,1731983451293,-882.87,9.999e-05,2]
[342586023,1731983451303,-882.87,9.999e-05,2]
[342586024,1731983451313,-882.87,9.999e-05,2]
[342586025,1731983451324,-882.87,9.999e-05,2]
[342586026,1731983451334,-882.87,9.999e-05,2]
[342586027,1731983451344,-882.87,9.999e-05,2]
[342586028,1731983451355,-500.0,9.999e-05,2]
[342586029,1731983451365,-882.87,9.999e-05,2]
[342586030,1731983451375,-500.0,9.999e-05,2]
[342586031,1731983451386,-882.87,9.999e-05,2]
[342586032,1731983451396,-500.0,9.999e-05,2]
[342586033,1731983451407,-882.87,9.999e-05,2]
[342586034,1731983451417,-882.87,9.999e-05,2]
[342586035,1731983451427,-500.0,9.999e-05,2]
[342586036,1731983451437,-882.87,9.999e-05,2]
[342586037,1731983451447,-500.0,9.999e-05,2]
[342586038,1731983451458,-882.87,9.999e-05,2]
[342586039,1731983451468,-500.0,9.999e-05,2]
[342586040,1731983451478,-882.87,9.999e-05,2]
[342586041,1731983451492,-264.16,9.999e-05,2]
[342586042,1731983451502,-882.87,9.999e-05,2]
[342586043,1731983451513,-882.87,9.999e-05,2]
[342586044,1731983451523,-882.87,9.999e-05,2]
[342586045,1731983451533,-317.53608862,9.999e-05,2]
[342586046,1731983451544,-882.87,9.999e-05,2]
[342586047,1731983451554,-882.87,9.999e-05,2]
[342586048,1731983451564,-6687.73649071,0.0001,2]
[342586049,1731983451575,-237965.66927603,0.0001,2]
[342586050,1731983451584,-155.78764471,0.0001,2]
[342586051,1731983451594,-6917627.95809414,0.0001,2]
[342586052,1731983451632,-380.2532935,0.0001,2]
[342586053,1731983451648,-5298.87429614,0.0001,2]
[342586054,1731983451660,-10000.0,0.0001,2]
[342586055,1731983451917,-643.09223713,0.0001,2]
[342586056,1731983451933,-374.63617939,0.0001,2]
[342586057,1731983452066,-1171.336,9.842e-05,2]
[342586058,1731983452076,-57.13570643,9.863e-05,2]
[342586059,1731983452088,-442.86429357,9.863e-05,2]
[342586060,1731983452098,-500.0,9.863e-05,2]
[342586061,1731983452107,-500.0,9.863e-05,2]
[342586062,1731983452118,-500.0,9.897e-05,2]
[342586063,1731983452128,-500.0,9.897e-05,2]
[342586064,1731983452137,-1478.24230068,0.0001,2]
[342586065,1731983452149,-2016.5,0.0001,2]
[342586066,1731983452161,-423.34546165,0.0001,2]
[342586067,1731983452174,-8960.0,0.0001,2]
[342586068,1731983452194,-1264.77570916,0.0001,2]
[342586069,1731983452207,-256.45423774,0.0001,2]
[342586070,1731983452218,-486.06072121,0.0001,2]
[342586071,1731983452232,-12745.69763446,0.0001,2]
[342586072,1731983452246,-499.7582014,0.0001,2]
[342586073,1731983452259,-331.31181807,0.0001,2]
[342586074,1731983452271,-1106.14999997,0.0001,2]
[342586075,1731983452295,-363.72,9.897e-05,2]
[342586076,1731983452307,-471.65382892,0.0001,2]
[342586077,1731983452321,-3222.1979463,0.0001,2]
[342586078,1731983452333,-9160.171665,0.0001,2]
[342586079,1731983452873,-630.369,9.842e-05,2]
[342586080,1731983452882,-500.0,9.863e-05,2]
[342586081,1731983452892,-500.0,9.863e-05,2]
[342586082,1731983452902,-500.0,9.863e-05,2]
[342586083,1731983452910,-500.0,9.863e-05,2]
[342586084,1731983452919,-502.47679884,9.863e-05,2]
[342586085,1731983452928,-529.32,9.897e-05,2]
[342586086,1731983452937,-500.0,9.897e-05,2]
[342586087,1731983452947,-500.0,9.898e-05,2]
[342586088,1731983452956,-217.49178875,9.898e-05,2]
[342586089,1731983452967,-91.22053039,9.898e-05,2]
[342586090,1731983452977,-403.67692495,9.998e-05,2]
[342586091,1731983452989,-96.32307505,9.998e-05,2]
[342586092,1731983452998,-246.83788975,9.999e-05,2]
[342586093,1731983453007,-21456.20788012,0.0001,2]
[342586094,1731983453018,-3056.05277297,0.0001,2]
[342586095,1731983453029,-260.95033025,0.0001,2]
[342586096,1731983453039,-45050.99999999,0.0001,2]
[342586097,1731983453050,-3075.0,0.0001,2]
[342586098,1731983453061,-35623.50578805,0.0001,2]
[342586099,1731983453072,-2673.86037149,0.0001,2]
[342586100,1731983453083,-10792.46980448,0.0001,2]
[342586101,1731983453093,-6288.94950738,0.0001,2]
[342586102,1731983453136,-476455.4999988,0.0001,2]
[342586103,1731983453303,-486.84,9.48e-05,2]
[342586104,1731983453312,-520.14,9.863e-05,2]
[342586105,1731983453322,-500.0,9.863e-05,2]
[342586106,1731983453331,-249.01,9.897e-05,2]
[342586107,1731983453341,-504.35679625,9.898e-05,2]
[342586108,1731983453350,-500.0,9.898e-05,2]
[342586109,1731983453360,-427.54053317,9.898e-05,2]
[342586110,1731983453390,-500.0,9.863e-05,2]
[342586111,1731983453400,-73.05339877,9.898e-05,2]
[342586112,1731983453410,-500.0,9.998e-05,2]
[342586113,1731983453420,-500.0,9.999e-05,2]
[342586114,1731983453431,-500.0,9.999e-05,2]
[342586115,1731983453441,-648.2,9.999e-05,2]
[342586116,1731983453451,-21612.35215049,0.0001,2]
[342586117,1731983453464,-1798.470504,0.0001,2]
[342586118,1731983453487,-500.0,9.897e-05,2]
[342586119,1731983453496,-4858.79245,0.0001,2]
[342586120,1731983453521,-500.0,9.898e-05,2]
[342586121,1731983453531,-5790.23575332,0.0001,2]
[342586122,1731983848118,271.25,8.219e-05,2]
[342586123,1731984007312,163.3,8.446e-05,2]
[342586126,1731984045510,1000.0,8.476e-05,2]
[342586127,1731984203528,23900.0,8.442e-05,2]
[342586128,1731984205895,1507.49280587,0.00023,120]
[342586132,1731984384127,173.61,6.855e-05,2]
[342586133,1731984431067,300.0,0.00013697,120]
[342586134,1731984431226,300.0,0.00013698,120]
[342586135,1731984431435,300.0,0.00014075,120]
[342586136,1731984431607,300.0,0.00014084,120]
[342586137,1731984432434,300.0,0.00014499,120]
[342586138,1731984432485,300.0,0.00014989,120]
[342586139,1731984432546,300.0,0.00014999,120]
[342586140,1731984432614,300.0,0.00015204,120]
[342586141,1731984432719,300.0,0.00013697,120]
[342586142,1731984432905,300.0,0.00013698,120]
[342586143,1731984433066,328.47198648,0.00014075,120]
[342586156,1731984550533,557.58,0.00015,120]
[342586167,1731984632750,-2446.85824768,8.556e-05,2]
[342586168,1731984632759,-317.05,8.556e-05,2]
[342586169,1731984632769,-1748.33500835,8.556e-05,2]
[342586170,1731984632779,-183.99,8.597e-05,2]
[342586171,1731984632788,-250.0,8.623e-05,2]
[342586172,1731984632799,-1194.32,8.767e-05,2]
[342586173,1731984632811,-168.77,8.782e-05,2]
[342586174,1731984632830,-168.77,8.797e-05,2]
[342586175,1731984632839,-168.77,8.811e-05,2]
[342586176,1731984632848,-168.77,8.826e-05,2]
[342586177,1731984632857,-150.0,9e-05,2]
[342586178,1731984632867,-300.0,9e-05,3]
[342586179,1731984632876,-640.99,9.041e-05,2]
[342586180,1731984632885,-1217.78174558,9.041e-05,2]
[342586181,1731984632900,-308.51825442,9.041e-05,2]
[342586182,1731984632910,-872.79,9.096e-05,2]
[342586183,1731984632920,-764.05,9.096e-05,2]
[342586184,1731984632930,-986.17,9.096e-05,2]
[342586185,1731984632939,-700.0,9.1e-05,3]
[342586186,1731984632949,-2875.29725071,9.13e-05,2]
[342586187,1731984632961,-1056.84843076,9.13e-05,2]
[342586188,1731984633147,-1034.46527114,9.13e-05,2]
[342586189,1731984633159,-700.0,9.13e-05,2]
[342586190,1731984633171,-1571.04711358,9.13e-05,2]
[342586191,1731984633183,-1665.93206113,9.13e-05,2]
[342586192,1731984633827,-11374.06451381,8.556e-05,2]
[342586194,1731984633838,-45179.40987268,9.13e-05,2]
[342586196,1731984633848,-301.43,9.178e-05,2]
[342586198,1731984633858,-150.0,9.178e-05,2]
[342586200,1731984633868,-1100.0,9.2e-05,3]
[342586202,1731984633877,-166.5,9.249e-05,2]
[342586204,1731984633887,-1500.0,9.3e-05,3]
[342586206,1731984633901,-150.0,9.37e-05,2]
[342586208,1731984633911,-156.5,9.37e-05,2]
[342586210,1731984633920,-150.0,9.37e-05,2]
[342586212,1731984633931,-1900.0,9.4e-05,3]
[342586214,1731984633941,-150.0,9.403e-05,2]
[342586216,1731984633951,-167.3533,9.435e-05,2]
[342586218,1731984633960,-2185.82732733,9.473e-05,2]
[342586220,1731984633970,-150.0,9.473e-05,2]
[342586222,1731984633979,-500.0,9.5e-05,2]
[342586224,1731984633988,-1009.8197,9.5e-05,2]
[342586226,1731984633998,-1586.8524,9.5e-05,2]
[342586228,1731984634007,-3338.438,9.5e-05,2]
[342586230,1731984634017,-300.0,9.5e-05,3]
[342586232,1731984634026,-163.3,9.502e-05,2]
[342586234,1731984634036,-1000.0,9.535e-05,2]
[342586236,1731984634045,-50630.319,9.535e-05,2]
[342586238,1731984634054,-8515.17695509,9.59e-05,2]
[342586240,1731984634064,-78874.992,9.6e-05,2]
[342586242,1731984634074,-307466.2982,9.6e-05,2]
[342586244,1731984634083,-300.0,9.6e-05,3]
[342586246,1731984634092,-317.05,9.626e-05,2]
[342586248,1731984634101,-299.99,9.67e-05,2]
[342586250,1731984634110,-1728.61,9.67e-05,2]
[342586252,1731984634120,-150.99,9.67e-05,2]
[342586254,1731984634129,-150.99,9.67e-05,2]
[342586256,1731984634138,-300.0,9.7e-05,3]
[342586258,1731984634150,-300.0,9.8e-05,3]
[342586260,1731984634159,-1378.9849,9.836e-05,2]
[342586262,1731984634169,-500.0,9.863e-05,2]
[342586264,1731984634178,-500.0,9.863e-05,2]
[342586265,1731984634187,-500.0,9.863e-05,2]
[342586267,1731984634197,-500.0,9.863e-05,2]
[342586269,1731984634206,-500.0,9.863e-05,2]
[342586271,1731984634216,-500.0,9.863e-05,2]
[342586273,1731984634225,-500.0,9.863e-05,2]
[342586275,1731984634235,-500.0,9.863e-05,2]
[342586277,1731984634245,-500.0,9.863e-05,2]
[342586279,1731984634255,-500.0,9.863e-05,2]
[342586281,1731984634264,-500.0,9.863e-05,2]
[342586283,1731984634274,-500.0,9.863e-05,2]
[342586285,1731984634284,-500.0,9.863e-05,2]
[342586288,1731984634294,-500.77843812,9.863e-05,2]
[342586289,1731984634304,-500.0,9.863e-05,2]
[342586292,1731984634313,-500.0,9.863e-05,2]
[342586294,1731984634324,-669.44,9.863e-05,2]
[342586295,1731984634334,-500.0,9.863e-05,2]
[342586297,1731984634343,-500.0,9.863e-05,2]
[342586299,1731984634352,-1783.84,9.863e-05,2]
[342586301,1731984634361,-500.0,9.863e-05,2]
[342586303,1731984634370,-500.0,9.863e-05,2]
[342586305,1731984634380,-588.91,9.863e-05,2]
[342586307,1731984634389,-500.0,9.863e-05,2]
[342586309,1731984634404,-500.0,9.863e-05,2]
[342586311,1731984634413,-546.17,9.863e-05,2]
[342586313,1731984634423,-500.0,9.863e-05,2]
[342586315,1731984634433,-500.0,9.863e-05,2]
[342586317,1731984634443,-500.0,9.863e-05,2]
[342586319,1731984634452,-500.0,9.863e-05,2]
[342586321,1731984634462,-512.93599699,9.863e-05,2]
[342586322,1731984634471,-500.0,9.863e-05,2]
[342586323,1731984634481,-500.0,9.863e-05,2]
[342586324,1731984634491,-500.0,9.863e-05,2]
[342586325,1731984634500,-500.0,9.863e-05,2]
[342586326,1731984634510,-500.0,9.863e-05,2]
[342586327,1731984634520,-500.0,9.863e-05,2]
[342586328,1731984634529,-500.0,9.863e-05,2]
[342586329,1731984634541,-857.16,9.863e-05,2]
[342586330,1731984634551,-500.0,9.863e-05,2]
[342586331,1731984634560,-500.0,9.863e-05,2]
[342586332,1731984634568,-500.0,9.863e-05,2]
[342586333,1731984634577,-500.0,9.863e-05,2]
[342586334,1731984634587,-500.0,9.863e-05,2]
[342586335,1731984634597,-500.0,9.863e-05,2]
[342586336,1731984634606,-500.0,9.863e-05,2]
[342586337,1731984634616,-500.77683693,9.863e-05,2]
[342586338,1731984634625,-500.0,9.863e-05,2]
[342586339,1731984634635,-500.0,9.863e-05,2]
[342586340,1731984634647,-500.0,9.863e-05,2]
[342586341,1731984634656,-500.0,9.863e-05,2]
[342586342,1731984634666,-500.0,9.863e-05,2]
[342586343,1731984634676,-500.0,9.863e-05,2]
[342586344,1731984634686,-153.08412705,9.863e-05,2]
[342586345,1731984634696,-500.0,9.863e-05,2]
[342586346,1731984634705,-500.0,9.863e-05,2]
[342586347,1731984634715,-500.0,9.863e-05,2]
[342586348,1731984634724,-500.0,9.863e-05,2]
[342586349,1731984634734,-505.92400498,9.863e-05,2]
[342586350,1731984634744,-500.0,9.863e-05,2]
[342586351,1731984634753,-500.0,9.863e-05,2]
[342586352,1731984634762,-500.0,9.863e-05,2]
[342586353,1731984634772,-500.0,9.863e-05,2]
[342586354,1731984634781,-500.56421775,9.863e-05,2]
[342586355,1731984634792,-500.0,9.863e-05,2]
[342586356,1731984634802,-500.0,9.863e-05,2]
[342586357,1731984634811,-500.0,9.863e-05,2]
[342586358,1731984634821,-500.0,9.863e-05,2]
[342586359,1731984634831,-500.0,9.863e-05,2]
[342586360,1731984634840,-532.58984003,9.863e-05,2]
[342586361,1731984634851,-500.0,9.863e-05,2]
[342586362,1731984634861,-500.0,9.863e-05,2]
[342586363,1731984634870,-500.0,9.863e-05,2]
[342586364,1731984634880,-500.0,9.863e-05,2]
[342586365,1731984634888,-500.0,9.863e-05,2]
[342586366,1731984634900,-500.0,9.863e-05,2]
[342586367,1731984634909,-500.0,9.863e-05,2]
[342586368,1731984634918,-500.0,9.863e-05,2]
[342586369,1731984634927,-500.0,9.863e-05,2]
[342586370,1731984634936,-500.0,9.863e-05,2]
[342586371,1731984634946,-500.0,9.863e-05,2]
[342586372,1731984634955,-556.37,9.863e-05,2]
[342586373,1731984634964,-500.0,9.863e-05,2]
[342586374,1731984634972,-500.0,9.863e-05,2]
[342586375,1731984634981,-500.0,9.863e-05,2]
[342586376,1731984634991,-500.0,9.863e-05,2]
[342586377,1731984635000,-500.0,9.863e-05,2]
[342586378,1731984635009,-500.0,9.863e-05,2]
[342586379,1731984635018,-500.0,9.863e-05,2]
[342586380,1731984635028,-500.0,9.863e-05,2]
[342586381,1731984635037,-500.0,9.863e-05,2]
[342586382,1731984635046,-500.0,9.863e-05,2]
[342586383,1731984635055,-500.0,9.863e-05,2]
[342586384,1731984635064,-500.0,9.863e-05,2]
[342586385,1731984635074,-500.0,9.863e-05,2]
[342586386,1731984635083,-500.0,9.863e-05,2]
[342586387,1731984635092,-500.0,9.863e-05,2]
[342586388,1731984635102,-500.0,9.863e-05,2]
[342586389,1731984635112,-500.0,9.863e-05,2]
[342586390,1731984635121,-500.0,9.863e-05,2]
[342586391,1731984635131,-500.0,9.863e-05,2]
[342586392,1731984635142,-500.0,9.863e-05,2]
[342586393,1731984635151,-499.71976268,9.863e-05,2]
[342586394,1731984635161,-500.0,9.863e-05,2]
[342586395,1731984635170,-500.0,9.863e-05,2]
[342586396,1731984635179,-500.0,9.863e-05,2]
[342586397,1731984635189,-500.0,9.863e-05,2]
[342586398,1731984635198,-500.0,9.863e-05,2]
[342586399,1731984635207,-500.0,9.863e-05,2]
[342586400,1731984635216,-500.0,9.863e-05,2]
[342586401,1731984635225,-500.0,9.863e-05,2]
[342586402,1731984635235,-500.0,9.863e-05,2]
[342586403,1731984635244,-500.0,9.863e-05,2]
[342586404,1731984635254,-500.0,9.863e-05,2]
[342586405,1731984635263,-500.0,9.863e-05,2]
[342586406,1731984635272,-500.0,9.863e-05,2]
[342586407,1731984635282,-500.0,9.863e-05,2]
[342586408,1731984635292,-500.0,9.863e-05,2]
[342586409,1731984635301,-500.0,9.863e-05,2]
[342586410,1731984635311,-500.0,9.863e-05,2]
[342586411,1731984635320,-500.0,9.863e-05,2]
[342586412,1731984635329,-500.0,9.863e-05,2]
[342586413,1731984635339,-500.0,9.863e-05,2]
[342586414,1731984635348,-500.54729082,9.863e-05,2]
[342586415,1731984635357,-500.0,9.863e-05,2]
[342586416,1731984635366,-500.0,9.863e-05,2]
[342586417,1731984635376,-500.0,9.863e-05,2]
[342586418,1731984635385,-500.40694155,9.863e-05,2]
[342586419,1731984635395,-500.0,9.863e-05,2]
[342586420,1731984635405,-516.70661006,9.863e-05,2]
[342586421,1731984635415,-500.0,9.863e-05,2]
[342586422,1731984635425,-500.0,9.863e-05,2]
[342586423,1731984635434,-629.92,9.863e-05,2]
[342586424,1731984635445,-500.0,9.863e-05,2]
[342586425,1731984635454,-500.0,9.863e-05,2]
[342586426,1731984635464,-500.0,9.863e-05,2]
[342586427,1731984635473,-500.0,9.863e-05,2]
[342586428,1731984635484,-500.0,9.863e-05,2]
[342586429,1731984635494,-500.0,9.863e-05,2]
[342586430,1731984635504,-500.0,9.863e-05,2]
[342586431,1731984635513,-500.87550801,9.863e-05,2]
[342586432,1731984635521,-500.0,9.863e-05,2]
[342586433,1731984635531,-500.0,9.863e-05,2]
[342586434,1731984635543,-500.0,9.863e-05,2]
[342586435,1731984635553,-500.0,9.863e-05,2]
[342586436,1731984635562,-500.0,9.863e-05,2]
[342586437,1731984635572,-500.0,9.863e-05,2]
[342586438,1731984635582,-500.0,9.863e-05,2]
[342586439,1731984635594,-500.0,9.863e-05,2]
[342586440,1731984635603,-500.0,9.863e-05,2]
[342586441,1731984635613,-500.66425238,9.863e-05,2]
[342586442,1731984635623,-500.0,9.863e-05,2]
[342586443,1731984635634,-502.53,9.863e-05,2]
[342586444,1731984635645,-503.15704212,9.863e-05,2]
[342586445,1731984635654,-500.0,9.863e-05,2]
[342586446,1731984635664,-500.0,9.863e-05,2]
[342586447,1731984635673,-500.0,9.863e-05,2]
[342586448,1731984635684,-500.0,9.863e-05,2]
[342586449,1731984635693,-500.0,9.863e-05,2]
[342586450,1731984635703,-500.0,9.863e-05,2]
[342586451,1731984635712,-500.0,9.863e-05,2]
[342586452,1731984635722,-501.6401774,9.863e-05,2]
[342586453,1731984635733,-538.80002817,9.863e-05,2]
[342586454,1731984635743,-500.0,9.863e-05,2]
[342586455,1731984635753,-502.71662491,9.863e-05,2]
[342586456,1731984635764,-500.0,9.863e-05,2]
[342586457,1731984635773,-500.0,9.863e-05,2]
[342586458,1731984635783,-500.0,9.863e-05,2]
[342586459,1731984635793,-503.94909756,9.863e-05,2]
[342586460,1731984635802,-500.0,9.863e-05,2]
[342586461,1731984635813,-537.99876153,9.863e-05,2]
[342586462,1731984635823,-500.0,9.863e-05,2]
[342586463,1731984635833,-500.0,9.863e-05,2]
[342586464,1731984635843,-500.0,9.863e-05,2]
[342586465,1731984636099,-500.0,9.863e-05,2]
[342586466,1731984636110,-500.0,9.863e-05,2]
[342586467,1731984636121,-500.0,9.863e-05,2]
[342586468,1731984636132,-500.0,9.863e-05,2]
[342586469,1731984636142,-500.0,9.863e-05,2]
[342586470,1731984636151,-500.0,9.863e-05,2]
[342586471,1731984636161,-760.57,9.863e-05,2]
[342586472,1731984636171,-500.0,9.863e-05,2]
[342586473,1731984636181,-500.0,9.863e-05,2]
[342586474,1731984636190,-500.0,9.863e-05,2]
[342586475,1731984636200,-500.0,9.863e-05,2]
[342586476,1731984636209,-292.49007709,9.863e-05,2]
[342586477,1731984636219,-500.0,9.863e-05,2]
[342586478,1731984636229,-503.28074702,9.863e-05,2]
[342586479,1731984636238,-500.0,9.863e-05,2]
[342586480,1731984636248,-500.0,9.863e-05,2]
[342586481,1731984636258,-537.07,9.863e-05,2]
[342586482,1731984636267,-500.63218376,9.863e-05,2]
[342586483,1731984636278,-500.0,9.863e-05,2]
[342586484,1731984636287,-529.76001762,9.863e-05,2]
[342586485,1731984636296,-500.0,9.863e-05,2]
[342586486,1731984636306,-639.03,9.863e-05,2]
[342586487,1731984636315,-500.0,9.863e-05,2]
[342586488,1731984636325,-500.0,9.863e-05,2]
[342586489,1731984636334,-500.0,9.863e-05,2]
[342586490,1731984636343,-500.0,9.863e-05,2]
[342586491,1731984636353,-500.0,9.863e-05,2]
[342586492,1731984636362,-500.0,9.863e-05,2]
[342586493,1731984636372,-514.72140466,9.863e-05,2]
[342586494,1731984636381,-500.0,9.863e-05,2]
[342586495,1731984636392,-648.84156741,9.863e-05,2]
[342586496,1731984636402,-376.41906323,9.863e-05,2]
[342586497,1731984636411,-500.0,9.863e-05,2]
[342586498,1731984636420,-500.53790847,9.863e-05,2]
[342586499,1731984636429,-500.0,9.863e-05,2]
[342586500,1731984636438,-170.70100072,9.863e-05,2]
[342586501,1731984636448,-500.0,9.863e-05,2]
[342586502,1731984636457,-500.0,9.863e-05,2]
[342586503,1731984636466,-500.0,9.863e-05,2]
[342586504,1731984636475,-500.0,9.863e-05,2]
[342586505,1731984636484,-500.0,9.863e-05,2]
[342586506,1731984636494,-500.0,9.863e-05,2]
[342586507,1731984636503,-510.45,9.863e-05,2]
[342586508,1731984636513,-500.0,9.863e-05,2]
[342586509,1731984636522,-614.74,9.863e-05,2]
[342586510,1731984636531,-500.0,9.863e-05,2]
[342586511,1731984636542,-530.85,9.863e-05,2]
[342586512,1731984636552,-497.71468482,9.863e-05,2]
[342586513,1731984636562,-500.0,9.863e-05,2]
[342586514,1731984636570,-500.0,9.863e-05,2]
[342586515,1731984636579,-500.0,9.863e-05,2]
[342586516,1731984636590,-529.32286941,9.863e-05,2]
[342586517,1731984636600,-500.60541275,9.863e-05,2]
[342586518,1731984636609,-500.0,9.863e-05,2]
[342586519,1731984636620,-500.0,9.863e-05,2]
[342586520,1731984636630,-505.18514629,9.863e-05,2]
[342586521,1731984636640,-500.0,9.863e-05,2]
[342586522,1731984636651,-500.0,9.863e-05,2]
[342586523,1731984636660,-500.91671599,9.863e-05,2]
[342586524,1731984636669,-503.91037295,9.863e-05,2]
[342586525,1731984636679,-500.0,9.863e-05,2]
[342586526,1731984636688,-240.78790668,9.863e-05,2]
[342586527,1731984636698,-500.0,9.863e-05,2]
[342586528,1731984636708,-500.0,9.863e-05,2]
[342586529,1731984636718,-500.0,9.863e-05,2]
[342586530,1731984636728,-501.86117103,9.863e-05,2]
[342586531,1731984636738,-500.0,9.863e-05,2]
[342586532,1731984636748,-500.0,9.863e-05,2]
[342586533,1731984636757,-500.0,9.863e-05,2]
[342586534,1731984636767,-500.0,9.863e-05,2]
[342586535,1731984636776,-500.0,9.863e-05,2]
[342586536,1731984636786,-500.0,9.863e-05,2]
[342586537,1731984636795,-500.0,9.863e-05,2]
[342586538,1731984636805,-500.0,9.863e-05,2]
[342586539,1731984636814,-500.0,9.863e-05,2]
[342586540,1731984636823,-500.0,9.863e-05,2]
[342586541,1731984636833,-500.0,9.863e-05,2]
[342586542,1731984636842,-500.0,9.863e-05,2]
[342586543,1731984636851,-500.0,9.863e-05,2]
[342586544,1731984636860,-500.87737329,9.863e-05,2]
[342586545,1731984636870,-500.97211479,9.863e-05,2]
[342586546,1731984636879,-500.0,9.863e-05,2]
[342586547,1731984636888,-500.0,9.863e-05,2]
[342586548,1731984636901,-500.0,9.863e-05,2]
[342586549,1731984636911,-500.0,9.863e-05,2]
[342586550,1731984636920,-530.26325686,9.863e-05,2]
[342586551,1731984636929,-500.0,9.863e-05,2]
[342586552,1731984636939,-500.0,9.863e-05,2]
[342586553,1731984636948,-500.0,9.863e-05,2]
[342586554,1731984636957,-606.28759932,9.863e-05,2]
[342586555,1731984636967,-500.0,9.863e-05,2]
[342586556,1731984636976,-500.0,9.863e-05,2]
[342586557,1731984636985,-500.0,9.863e-05,2]
[342586558,1731984636995,-500.0,9.863e-05,2]
[342586559,1731984637004,-500.0,9.863e-05,2]
[342586560,1731984637014,-503.44714489,9.863e-05,2]
[342586561,1731984637023,-500.0,9.863e-05,2]
[342586562,1731984637032,-500.0,9.863e-05,2]
[342586563,1731984637041,-500.0,9.863e-05,2]
[342586564,1731984637050,-500.0,9.863e-05,2]
[342586565,1731984637060,-390.86789192,9.863e-05,2]
[342586566,1731984637070,-500.0,9.863e-05,2]
[342586567,1731984637080,-500.0,9.863e-05,2]
[342586568,1731984637089,-594.66473983,9.863e-05,2]
[342586569,1731984637098,-517.94070582,9.863e-05,2]
[342586570,1731984637107,-500.0,9.863e-05,2]
[342586571,1731984637116,-419.64956648,9.863e-05,2]
[342586572,1731984637125,-500.0,9.863e-05,2]
[342586573,1731984637135,-500.0,9.863e-05,2]
[342586574,1731984637146,-500.0,9.863e-05,2]
[342586575,1731984637156,-500.0,9.863e-05,2]
[342586576,1731984637165,-500.0,9.863e-05,2]
[342586577,1731984637174,-500.0,9.863e-05,2]
[342586578,1731984637183,-500.0,9.863e-05,2]
[342586579,1731984637192,-343.20936427,9.863e-05,2]
[342586580,1731984637202,-500.0,9.863e-05,2]
[342586581,1731984637211,-500.0,9.863e-05,2]
[342586582,1731984637220,-500.0,9.863e-05,2]
[342586583,1731984637229,-500.0,9.863e-05,2]
[342586584,1731984637239,-500.0,9.863e-05,2]
[342586585,1731984637248,-574.66803669,9.863e-05,2]
[342586586,1731984637258,-500.0,9.863e-05,2]
[342586587,1731984637267,-500.0,9.863e-05,2]
[342586588,1731984637277,-500.0,9.863e-05,2]
[342586589,1731984637286,-501.18527386,9.863e-05,2]
[342586590,1731984637296,-500.0,9.863e-05,2]
[342586591,1731984637305,-500.0,9.863e-05,2]
[342586592,1731984637315,-500.0,9.863e-05,2]
[342586593,1731984637325,-500.0,9.863e-05,2]